[Event "Live Chess"]
[Site "Chess.com"]
[Date "2024.06.01"]
[Round "-"]
[White "TigerTank70"]
[Black "f4nomore"]
[Result "1-0"]
[WhiteElo "2187"]
[BlackElo "1202"]
[TimeControl "300"]
[EndTime "12:28:19 PDT"]
[Termination "TigerTank70 won by checkmate"]

1. e4 {[%clk 0:04:57.6]} 1... g6 {[%clk 0:04:59.6]} 2. d4 {[%clk 0:04:56.2]}
2... Bg7 {[%clk 0:04:58.3]} 3. Nc3 {[%clk 0:04:55.9]} 3... d6 {[%clk 0:04:57.4]}
4. Bg5 {[%clk 0:04:54.2]} 4... Nf6 {[%clk 0:04:55.3]} 5. Qd2 {[%clk 0:04:53]}
5... h6 {[%clk 0:04:46.6]} 6. Bf4 {[%clk 0:04:50.9]} 6... g5 {[%clk 0:04:41.2]}
7. Be3 {[%clk 0:04:47.6]} 7... O-O {[%clk 0:04:35.1]} 8. Be2 {[%clk 0:04:46.3]}
8... Nbd7 {[%clk 0:04:33.8]} 9. h4 {[%clk 0:04:45]} 9... e5 {[%clk 0:04:23.2]}
10. hxg5 {[%clk 0:04:42.4]} 10... exd4 {[%clk 0:04:21.5]} 11. Bxd4 {[%clk
0:04:38.1]} 11... Nxe4 {[%clk 0:04:11.3]} 12. Nxe4 {[%clk 0:04:35.2]} 12... Bxd4
{[%clk 0:03:59]} 13. Qxd4 {[%clk 0:04:31.5]} 13... Ne5 {[%clk 0:03:57.2]} 14.
Nf6+ {[%clk 0:04:25.4]} 14... Kg7 {[%clk 0:03:52.1]} 15. Rxh6 {[%clk 0:04:22.6]}
15... Rh8 {[%clk 0:03:45.8]} 16. Nh5+ {[%clk 0:04:15.7]} 16... Kg8 {[%clk
0:03:36.6]} 17. Rxh8+ {[%clk 0:04:14.2]} 17... Kxh8 {[%clk 0:03:34.9]} 18. f4
{[%clk 0:04:13.4]} 18... c5 {[%clk 0:03:25.3]} 19. Qc3 {[%clk 0:04:11.3]} 19...
Kg8 {[%clk 0:03:11.2]} 20. Nf6+ {[%clk 0:04:08.7]} 20... Kf8 {[%clk 0:03:06.3]}
21. fxe5 {[%clk 0:04:08.6]} 21... dxe5 {[%clk 0:03:03.1]} 22. Rd1 {[%clk
0:04:07.6]} 22... Qe7 {[%clk 0:03:00]} 23. Nf3 {[%clk 0:03:57.4]} 23... Bf5
{[%clk 0:02:50.6]} 24. Qxe5 {[%clk 0:03:50.6]} 24... Qxe5 {[%clk 0:02:40.8]} 25.
Nxe5 {[%clk 0:03:50.5]} 25... Bxc2 {[%clk 0:02:38]} 26. Rc1 {[%clk 0:03:49.2]}
26... Ba4 {[%clk 0:02:28.7]} 27. Rxc5 {[%clk 0:03:48]} 27... Rd8 {[%clk
0:02:25.6]} 28. Rc7 {[%clk 0:03:45.7]} 28... Rd1+ {[%clk 0:02:22.5]} 29. Bxd1
{[%clk 0:03:43.9]} 29... Bxd1 {[%clk 0:02:18.6]} 30. Rxf7# {[%clk 0:03:42.6]}
1-0

[Event "Live Chess"]
[Site "Chess.com"]
[Date "2024.06.01"]
[Round "-"]
[White "Hacker_2009"]
[Black "GwaryTek"]
[Result "0-1"]
[WhiteElo "2213"]
[BlackElo "2000"]
[TimeControl "300"]
[EndTime "12:28:29 PDT"]
[Termination "GwaryTek won by resignation"]

1. e4 {[%clk 0:04:57.4]} 1... Nf6 {[%clk 0:04:59.2]} 2. e5 {[%clk 0:04:56.6]}
2... Nd5 {[%clk 0:04:57.9]} 3. c4 {[%clk 0:04:56.5]} 3... Nb6 {[%clk 0:04:57]}
4. d4 {[%clk 0:04:56.4]} 4... d6 {[%clk 0:04:56.2]} 5. exd6 {[%clk 0:04:55]}
5... exd6 {[%clk 0:04:53.3]} 6. Nf3 {[%clk 0:04:54.9]} 6... Be7 {[%clk 0:04:52]}
7. Bd3 {[%clk 0:04:53.6]} 7... O-O {[%clk 0:04:51.4]} 8. O-O {[%clk 0:04:53.2]}
8... Na6 {[%clk 0:04:49.8]} 9. a3 {[%clk 0:04:49.6]} 9... c6 {[%clk 0:04:48.3]}
10. Nc3 {[%clk 0:04:49]} 10... Nc7 {[%clk 0:04:47.4]} 11. b4 {[%clk 0:04:43.9]}
11... Bg4 {[%clk 0:04:45.8]} 12. h3 {[%clk 0:04:42.1]} 12... Bh5 {[%clk
0:04:43.1]} 13. Bb2 {[%clk 0:04:41.6]} 13... d5 {[%clk 0:04:41.6]} 14. c5 {[%clk
0:04:35.6]} 14... Nc4 {[%clk 0:04:19]} 15. Bxc4 {[%clk 0:04:33.9]} 15... dxc4
{[%clk 0:04:18.9]} 16. Re1 {[%clk 0:04:25.7]} 16... Bf6 {[%clk 0:04:12.9]} 17.
Ne4 {[%clk 0:04:24.5]} 17... Nd5 {[%clk 0:04:09.8]} 18. Nxf6+ {[%clk 0:04:23.4]}
18... Qxf6 {[%clk 0:04:06.8]} 19. Rc1 {[%clk 0:04:06.5]} 19... Nf4 {[%clk
0:03:56.6]} 20. Kh2 {[%clk 0:03:47.2]} 20... Nd3 {[%clk 0:03:36.2]} 21. Re5
{[%clk 0:03:01.2]} 21... Bxf3 {[%clk 0:03:24.9]} 22. gxf3 {[%clk 0:02:54.3]}
22... Nxb2 {[%clk 0:03:14.6]} 23. Qd2 {[%clk 0:02:51.2]} 23... Nd3 {[%clk
0:03:10.7]} 24. Rg1 {[%clk 0:02:49.6]} 24... Nxe5 {[%clk 0:03:06.1]} 0-1

[Event "Live Chess"]
[Site "Chess.com"]
[Date "2024.06.01"]
[Round "-"]
[White "Colm_Buckley"]
[Black "LL220284LL"]
[Result "0-1"]
[WhiteElo "1857"]
[BlackElo "2549"]
[TimeControl "300"]
[EndTime "12:28:33 PDT"]
[Termination "LL220284LL won by resignation"]

1. d4 {[%clk 0:04:57.2]} 1... Nf6 {[%clk 0:04:59.9]} 2. c4 {[%clk 0:04:56.2]}
2... e6 {[%clk 0:04:59.4]} 3. Nc3 {[%clk 0:04:55.7]} 3... Bb4 {[%clk 0:04:59.1]}
4. Qc2 {[%clk 0:04:54.8]} 4... O-O {[%clk 0:04:58.4]} 5. a3 {[%clk 0:04:53.7]}
5... Bxc3+ {[%clk 0:04:57.6]} 6. Qxc3 {[%clk 0:04:53.1]} 6... d5 {[%clk
0:04:57.3]} 7. Nf3 {[%clk 0:04:50.6]} 7... dxc4 {[%clk 0:04:56.7]} 8. Qxc4
{[%clk 0:04:49.4]} 8... b6 {[%clk 0:04:56.3]} 9. Bg5 {[%clk 0:04:45]} 9... Bb7
{[%clk 0:04:55.8]} 10. e3 {[%clk 0:04:43.1]} 10... Nbd7 {[%clk 0:04:52.9]} 11.
Be2 {[%clk 0:04:40.5]} 11... Rc8 {[%clk 0:04:51.5]} 12. O-O {[%clk 0:04:37.3]}
12... h6 {[%clk 0:04:50.4]} 13. Bh4 {[%clk 0:04:34.8]} 13... c5 {[%clk
0:04:49.8]} 14. dxc5 {[%clk 0:04:32.8]} 14... Nxc5 {[%clk 0:04:47.6]} 15. Qa2
{[%clk 0:04:21.1]} 15... g5 {[%clk 0:04:38.4]} 16. Nxg5 {[%clk 0:04:06.8]} 16...
hxg5 {[%clk 0:04:37.1]} 17. Bxg5 {[%clk 0:04:05.6]} 17... Nce4 {[%clk 0:04:34]}
18. Bh4 {[%clk 0:03:53.8]} 18... Qd5 {[%clk 0:04:31.9]} 19. Bf3 {[%clk
0:03:40.5]} 19... Qxa2 {[%clk 0:04:27]} 20. Rxa2 {[%clk 0:03:39.1]} 20... Bd5
{[%clk 0:04:25.7]} 21. Raa1 {[%clk 0:03:37.4]} 21... Kg7 {[%clk 0:04:23.6]} 22.
Rac1 {[%clk 0:03:26.8]} 22... Nd2 {[%clk 0:04:18.9]} 23. Bxf6+ {[%clk 0:03:10]}
23... Kxf6 {[%clk 0:04:18.8]} 0-1

[Event "Live Chess"]
[Site "Chess.com"]
[Date "2024.06.01"]
[Round "-"]
[White "IanCalvert2"]
[Black "KwikPhoenix"]
[Result "0-1"]
[WhiteElo "1547"]
[BlackElo "2452"]
[TimeControl "300"]
[EndTime "12:29:01 PDT"]
[Termination "KwikPhoenix won by resignation"]

1. b3 {[%clk 0:04:55.9]} 1... a5 {[%clk 0:04:58.3]} 2. c4 {[%clk 0:04:47.8]}
2... a4 {[%clk 0:04:58.2]} 3. Bb2 {[%clk 0:04:44]} 3... e6 {[%clk 0:04:55.8]} 4.
bxa4 {[%clk 0:04:37.9]} 4... Nf6 {[%clk 0:04:52.8]} 5. Nc3 {[%clk 0:04:33.9]}
5... d5 {[%clk 0:04:51.8]} 6. cxd5 {[%clk 0:04:25.7]} 6... exd5 {[%clk
0:04:51.7]} 7. e3 {[%clk 0:04:22.5]} 7... Bd6 {[%clk 0:04:47.5]} 8. Nf3 {[%clk
0:04:19]} 8... c6 {[%clk 0:04:46.2]} 9. Be2 {[%clk 0:04:08.4]} 9... O-O {[%clk
0:04:41.3]} 10. O-O {[%clk 0:03:56]} 10... Na6 {[%clk 0:04:36.7]} 11. d3 {[%clk
0:03:43.8]} 11... Qc7 {[%clk 0:04:33.9]} 12. e4 {[%clk 0:03:36.5]} 12... dxe4
{[%clk 0:04:30.5]} 13. Nxe4 {[%clk 0:03:31.8]} 13... Nxe4 {[%clk 0:04:28.6]} 14.
dxe4 {[%clk 0:03:30.2]} 14... Bg4 {[%clk 0:04:25.5]} 15. Qd4 {[%clk 0:03:19.2]}
15... f5 {[%clk 0:04:19]} 16. Rfd1 {[%clk 0:03:12.2]} 16... Bxf3 {[%clk
0:04:08.2]} 17. Bxf3 {[%clk 0:02:55.6]} 17... Bxh2+ {[%clk 0:04:05.2]} 18. Kh1
{[%clk 0:02:52]} 18... Rad8 {[%clk 0:03:52.6]} 19. Qxg7+ {[%clk 0:02:37.2]}
19... Qxg7 {[%clk 0:03:49.5]} 20. Bxg7 {[%clk 0:02:33.8]} 20... Kxg7 {[%clk
0:03:49]} 21. Kxh2 {[%clk 0:02:31]} 21... Rxd1 {[%clk 0:03:39.6]} 22. Rxd1
{[%clk 0:02:24.2]} 22... fxe4 {[%clk 0:03:39.2]} 23. Bxe4 {[%clk 0:02:18.7]}
23... Rxf2 {[%clk 0:03:34.8]} 24. Rd7+ {[%clk 0:02:09.6]} 24... Kf6 {[%clk
0:03:31.1]} 25. Rxh7 {[%clk 0:01:25.7]} 25... Nc5 {[%clk 0:03:26.3]} 26. Bf3
{[%clk 0:01:21.1]} 26... Rxa2 {[%clk 0:03:18.4]} 27. Kh3 {[%clk 0:00:58.2]}
27... Rxa4 {[%clk 0:03:11]} 28. g4 {[%clk 0:00:54.8]} 28... Ra3 {[%clk
0:03:08.6]} 29. Kg2 {[%clk 0:00:50]} 29... Nd3 {[%clk 0:03:07.7]} 30. Rxb7
{[%clk 0:00:21.1]} 30... Ne1+ {[%clk 0:03:05.9]} 31. Kf2 {[%clk 0:00:19.3]}
31... Nxf3 {[%clk 0:03:04.8]} 32. Rb6 {[%clk 0:00:15.3]} 32... Ne5 {[%clk
0:03:04]} 0-1

[Event "Live Chess"]
[Site "Chess.com"]
[Date "2024.06.01"]
[Round "-"]
[White "Tushinskiy"]
[Black "NottheBishopSacrifice"]
[Result "1-0"]
[WhiteElo "2263"]
[BlackElo "2251"]
[TimeControl "300"]
[EndTime "12:29:23 PDT"]
[Termination "Tushinskiy won by resignation"]

1. d4 {[%clk 0:04:55.4]} 1... d5 {[%clk 0:04:58.7]} 2. c3 {[%clk 0:04:55.3]}
2... Nf6 {[%clk 0:04:55.1]} 3. Nf3 {[%clk 0:04:55.2]} 3... Bf5 {[%clk
0:04:52.1]} 4. Bf4 {[%clk 0:04:38.2]} 4... e6 {[%clk 0:04:49.8]} 5. Nbd2 {[%clk
0:04:35.9]} 5... Bd6 {[%clk 0:04:48]} 6. Bg3 {[%clk 0:04:34.3]} 6... O-O {[%clk
0:04:45.4]} 7. e3 {[%clk 0:04:33.2]} 7... c5 {[%clk 0:04:43.9]} 8. Nh4 {[%clk
0:04:32.3]} 8... Bg6 {[%clk 0:04:40.6]} 9. Nxg6 {[%clk 0:04:31.3]} 9... hxg6
{[%clk 0:04:40.5]} 10. Bd3 {[%clk 0:04:30.7]} 10... Nc6 {[%clk 0:04:38.1]} 11.
Nf3 {[%clk 0:04:26.7]} 11... Qe7 {[%clk 0:04:31.4]} 12. Ne5 {[%clk 0:04:24]}
12... Bxe5 {[%clk 0:04:29.8]} 13. dxe5 {[%clk 0:04:23.9]} 13... Nh5 {[%clk
0:04:28.7]} 14. f4 {[%clk 0:04:23.2]} 14... d4 {[%clk 0:04:22.8]} 15. e4 {[%clk
0:04:15.5]} 15... dxc3 {[%clk 0:04:20.5]} 16. bxc3 {[%clk 0:04:15.4]} 16... Rfd8
{[%clk 0:04:16.2]} 17. Qc2 {[%clk 0:04:14.4]} 17... Rac8 {[%clk 0:04:13.8]} 18.
O-O {[%clk 0:04:11.2]} 18... c4 {[%clk 0:04:12]} 19. Be2 {[%clk 0:04:10.4]}
19... Nxg3 {[%clk 0:04:06.5]} 20. hxg3 {[%clk 0:04:10.3]} 20... Qc5+ {[%clk
0:04:05.6]} 21. Kh2 {[%clk 0:04:08.2]} 21... Qe3 {[%clk 0:04:04.8]} 22. Rad1
{[%clk 0:04:01]} 22... b5 {[%clk 0:04:03]} 23. Rf3 {[%clk 0:03:57.9]} 23... Qc5
{[%clk 0:04:00.9]} 24. Rdf1 {[%clk 0:03:56.1]} 24... b4 {[%clk 0:03:56.5]} 25.
Qc1 {[%clk 0:03:39.5]} 25... bxc3 {[%clk 0:03:54.8]} 26. Rxc3 {[%clk 0:03:38.8]}
26... Na5 {[%clk 0:03:42.8]} 27. Rff3 {[%clk 0:03:33.9]} 27... Qd4 {[%clk
0:03:40.6]} 28. Qa3 {[%clk 0:03:28.6]} 28... Qxe4 {[%clk 0:03:28.7]} 29. Qxa5
{[%clk 0:03:25.8]} 29... Qxe2 {[%clk 0:03:27.5]} 30. Rce3 {[%clk 0:03:13.3]}
30... Qd2 {[%clk 0:03:20.5]} 31. Rc3 {[%clk 0:03:09.5]} 31... Rd7 {[%clk
0:03:13.2]} 32. Qa6 {[%clk 0:03:02]} 32... Qd4 {[%clk 0:03:09.7]} 33. Qxc8+
{[%clk 0:02:59.9]} 33... Kh7 {[%clk 0:03:08.1]} 34. Qxc4 {[%clk 0:02:59.6]}
34... Qd1 {[%clk 0:03:05.3]} 35. g4 {[%clk 0:02:56.5]} 35... Rd2 {[%clk
0:03:00.3]} 36. Rcd3 {[%clk 0:02:45.6]} 1-0

[Event "Live Chess"]
[Site "Chess.com"]
[Date "2024.06.01"]
[Round "-"]
[White "uselessduffer"]
[Black "NAZRIZ1977"]
[Result "1-0"]
[WhiteElo "2427"]
[BlackElo "2137"]
[TimeControl "300"]
[EndTime "12:29:37 PDT"]
[Termination "uselessduffer won by resignation"]

1. e4 {[%clk 0:04:54.2]} 1... c5 {[%clk 0:04:58.1]} 2. Nc3 {[%clk 0:04:52.8]}
2... Nc6 {[%clk 0:04:57.2]} 3. Bb5 {[%clk 0:04:51.6]} 3... Nd4 {[%clk
0:04:56.1]} 4. Nf3 {[%clk 0:04:49.2]} 4... g6 {[%clk 0:04:54.7]} 5. Nxd4 {[%clk
0:04:46.8]} 5... cxd4 {[%clk 0:04:53.9]} 6. Ne2 {[%clk 0:04:46.5]} 6... Bg7
{[%clk 0:04:53.4]} 7. O-O {[%clk 0:04:44.9]} 7... e6 {[%clk 0:04:52.9]} 8. d3
{[%clk 0:04:37.3]} 8... Ne7 {[%clk 0:04:52]} 9. Ba4 {[%clk 0:04:29.5]} 9... O-O
{[%clk 0:04:50.7]} 10. f4 {[%clk 0:04:26.9]} 10... d5 {[%clk 0:04:47.1]} 11. e5
{[%clk 0:04:24.4]} 11... f6 {[%clk 0:04:44.7]} 12. exf6 {[%clk 0:04:18.5]} 12...
Bxf6 {[%clk 0:04:44.6]} 13. Bd2 {[%clk 0:04:13.2]} 13... Bd7 {[%clk 0:04:35.7]}
14. Bb3 {[%clk 0:04:00.1]} 14... Rc8 {[%clk 0:04:23.9]} 15. Qe1 {[%clk 0:03:58]}
15... Nf5 {[%clk 0:04:18.2]} 16. Kh1 {[%clk 0:03:53.1]} 16... Qe8 {[%clk
0:04:05.1]} 17. Ng1 {[%clk 0:03:47.1]} 17... Ba4 {[%clk 0:03:58.6]} 18. Rc1
{[%clk 0:03:39.9]} 18... Bxb3 {[%clk 0:03:52.3]} 19. axb3 {[%clk 0:03:39.8]}
19... Rc6 {[%clk 0:03:46.3]} 20. c4 {[%clk 0:03:21.7]} 20... dxc3 {[%clk
0:03:41]} 21. bxc3 {[%clk 0:03:21.6]} 21... Qd7 {[%clk 0:03:36.9]} 22. Nf3
{[%clk 0:03:16]} 22... b5 {[%clk 0:03:31.5]} 23. c4 {[%clk 0:02:46.2]} 23...
bxc4 {[%clk 0:03:27.9]} 24. bxc4 {[%clk 0:02:40.2]} 24... dxc4 {[%clk 0:03:27]}
25. dxc4 {[%clk 0:02:34.6]} 25... Rfc8 {[%clk 0:03:25.3]} 26. Bc3 {[%clk
0:02:33.9]} 26... Rc5 {[%clk 0:03:01.5]} 27. Bxf6 {[%clk 0:02:31.5]} 1-0

[Event "Live Chess"]
[Site "Chess.com"]
[Date "2024.06.01"]
[Round "-"]
[White "yarek"]
[Black "degringolade64"]
[Result "0-1"]
[WhiteElo "1730"]
[BlackElo "2109"]
[TimeControl "300"]
[EndTime "12:29:39 PDT"]
[Termination "degringolade64 won by checkmate"]

1. e4 {[%clk 0:04:56.5]} 1... e5 {[%clk 0:04:57.8]} 2. d4 {[%clk 0:04:55.9]}
2... exd4 {[%clk 0:04:56.3]} 3. Qxd4 {[%clk 0:04:55.8]} 3... Nc6 {[%clk
0:04:54.4]} 4. Qe3 {[%clk 0:04:55.4]} 4... Nf6 {[%clk 0:04:53.1]} 5. Nc3 {[%clk
0:04:54.8]} 5... Bb4 {[%clk 0:04:52]} 6. Bd2 {[%clk 0:04:54.1]} 6... O-O {[%clk
0:04:43.6]} 7. O-O-O {[%clk 0:04:52.4]} 7... Re8 {[%clk 0:04:24.8]} 8. Qg3
{[%clk 0:04:41.2]} 8... Nxe4 {[%clk 0:04:19.6]} 9. Nxe4 {[%clk 0:04:33.7]} 9...
Rxe4 {[%clk 0:04:19.5]} 10. Bh6 {[%clk 0:04:14]} 10... Qf6 {[%clk 0:03:52]} 11.
Bg5 {[%clk 0:03:52.7]} 11... Qe6 {[%clk 0:03:24.5]} 12. Kb1 {[%clk 0:03:28.6]}
12... Re1 {[%clk 0:03:12.6]} 13. Nf3 {[%clk 0:03:15.6]} 13... Rxd1+ {[%clk
0:03:11]} 14. Bc1 {[%clk 0:03:11.4]} 14... Nd4 {[%clk 0:02:47]} 15. Nxd4 {[%clk
0:02:50.9]} 15... Rxc1+ {[%clk 0:02:45.1]} 16. Kxc1 {[%clk 0:02:47.2]} 16...
Qe1# {[%clk 0:02:43.9]} 0-1

[Event "Live Chess"]
[Site "Chess.com"]
[Date "2024.06.01"]
[Round "-"]
[White "Nazar-Makarchuk"]
[Black "gobbles19"]
[Result "0-1"]
[WhiteElo "1505"]
[BlackElo "2245"]
[TimeControl "300"]
[EndTime "12:29:42 PDT"]
[Termination "gobbles19 won by resignation"]

1. e4 {[%clk 0:04:57.9]} 1... Nf6 {[%clk 0:04:57.6]} 2. Nc3 {[%clk 0:04:56.5]}
2... d6 {[%clk 0:04:55.3]} 3. Nf3 {[%clk 0:04:55.8]} 3... g6 {[%clk 0:04:54.8]}
4. d4 {[%clk 0:04:55.3]} 4... Bg7 {[%clk 0:04:54.4]} 5. e5 {[%clk 0:04:54.9]}
5... dxe5 {[%clk 0:04:50.9]} 6. dxe5 {[%clk 0:04:54.4]} 6... Qxd1+ {[%clk
0:04:49.9]} 7. Nxd1 {[%clk 0:04:53.8]} 7... Ng4 {[%clk 0:04:49.2]} 8. h3 {[%clk
0:04:52]} 8... Nxe5 {[%clk 0:04:47.6]} 9. Nxe5 {[%clk 0:04:50.8]} 9... Bxe5
{[%clk 0:04:47.5]} 10. c3 {[%clk 0:04:50.1]} 10... O-O {[%clk 0:04:43.2]} 11.
Bc4 {[%clk 0:04:49.2]} 11... Nd7 {[%clk 0:04:35.1]} 12. Ne3 {[%clk 0:04:48.2]}
12... Nb6 {[%clk 0:04:33.3]} 13. Bb3 {[%clk 0:04:46.5]} 13... a5 {[%clk
0:04:32]} 14. Nd5 {[%clk 0:04:45.2]} 14... Nxd5 {[%clk 0:04:28.7]} 15. Bxd5
{[%clk 0:04:44.5]} 15... c6 {[%clk 0:04:28]} 16. Bf3 {[%clk 0:04:43.2]} 16...
Be6 {[%clk 0:04:24.9]} 17. Be3 {[%clk 0:04:42.4]} 17... Bc4 {[%clk 0:04:21.5]}
18. Be2 {[%clk 0:04:40.7]} 18... Bd5 {[%clk 0:04:19.7]} 19. Bf3 {[%clk 0:04:39]}
19... Bxf3 {[%clk 0:04:18.5]} 20. gxf3 {[%clk 0:04:38.2]} 20... a4 {[%clk
0:04:17.2]} 21. f4 {[%clk 0:04:37.1]} 21... Bf6 {[%clk 0:04:15.7]} 22. Ke2
{[%clk 0:04:36.4]} 22... Rfd8 {[%clk 0:04:14.2]} 23. Rhd1 {[%clk 0:04:34.5]}
23... e6 {[%clk 0:03:56.6]} 24. Rxd8+ {[%clk 0:04:32.2]} 24... Rxd8 {[%clk
0:03:55.4]} 25. Rd1 {[%clk 0:04:31.7]} 25... Rxd1 {[%clk 0:03:52.9]} 26. Kxd1
{[%clk 0:04:30.8]} 26... a3 {[%clk 0:03:51.1]} 27. bxa3 {[%clk 0:04:28.8]} 27...
Bxc3 {[%clk 0:03:50.3]} 28. Kc2 {[%clk 0:04:28.2]} 28... Ba5 {[%clk 0:03:47]}
29. Kb3 {[%clk 0:04:27.4]} 29... f5 {[%clk 0:03:22]} 30. Ka4 {[%clk 0:04:24]}
30... Bc7 {[%clk 0:03:21]} 31. Kb4 {[%clk 0:04:21.2]} 31... Kf7 {[%clk
0:03:20.2]} 32. a4 {[%clk 0:04:19.9]} 32... Ke7 {[%clk 0:03:14.5]} 33. a5 {[%clk
0:04:19]} 33... Kd7 {[%clk 0:03:13.6]} 34. Bb6 {[%clk 0:04:14.7]} 34... Bxf4
{[%clk 0:03:11.4]} 35. Kc4 {[%clk 0:04:10.6]} 35... h5 {[%clk 0:03:04.2]} 36.
Kd3 {[%clk 0:04:08.9]} 36... g5 {[%clk 0:03:02.8]} 37. Ke2 {[%clk 0:04:08]}
37... g4 {[%clk 0:03:01.7]} 38. hxg4 {[%clk 0:04:06.6]} 38... fxg4 {[%clk
0:03:01.1]} 39. Kf1 {[%clk 0:04:03.7]} 39... h4 {[%clk 0:02:59.4]} 40. Kg2
{[%clk 0:04:03]} 40... h3+ {[%clk 0:02:58.5]} 41. Kh1 {[%clk 0:04:01.2]} 41...
Bc7 {[%clk 0:02:53.4]} 42. Bxc7 {[%clk 0:03:47.7]} 42... Kxc7 {[%clk 0:02:53.3]}
43. Kh2 {[%clk 0:03:46.9]} 43... c5 {[%clk 0:02:52.2]} 44. f3 {[%clk 0:03:46.4]}
44... gxf3 {[%clk 0:02:49.1]} 45. Kxh3 {[%clk 0:03:45.9]} 45... c4 {[%clk
0:02:48.5]} 46. Kg3 {[%clk 0:03:45.6]} 46... c3 {[%clk 0:02:47.9]} 47. Kxf3
{[%clk 0:03:45.3]} 47... c2 {[%clk 0:02:47.6]} 0-1

[Event "Live Chess"]
[Site "Chess.com"]
[Date "2024.06.01"]
[Round "-"]
[White "wadsy27"]
[Black "MagnersCarlsberg2870"]
[Result "1-0"]
[WhiteElo "2558"]
[BlackElo "1844"]
[TimeControl "300"]
[EndTime "12:29:59 PDT"]
[Termination "wadsy27 won by checkmate"]

1. d4 {[%clk 0:04:59.7]} 1... Nf6 {[%clk 0:04:58.4]} 2. Nf3 {[%clk 0:04:59.3]}
2... b6 {[%clk 0:04:56.4]} 3. g3 {[%clk 0:04:59]} 3... Bb7 {[%clk 0:04:55.5]} 4.
Bg2 {[%clk 0:04:58.8]} 4... d5 {[%clk 0:04:54.5]} 5. O-O {[%clk 0:04:58.4]} 5...
h5 {[%clk 0:04:53]} 6. Bg5 {[%clk 0:04:57]} 6... Ne4 {[%clk 0:04:51.1]} 7. h4
{[%clk 0:04:55.5]} 7... f6 {[%clk 0:04:49.7]} 8. Be3 {[%clk 0:04:54]} 8... g5
{[%clk 0:04:48.3]} 9. hxg5 {[%clk 0:04:53.3]} 9... fxg5 {[%clk 0:04:47.3]} 10.
Nxg5 {[%clk 0:04:52.8]} 10... h4 {[%clk 0:04:43.2]} 11. Nxe4 {[%clk 0:04:51.4]}
11... dxe4 {[%clk 0:04:42.1]} 12. gxh4 {[%clk 0:04:38.2]} 12... Rxh4 {[%clk
0:04:39.5]} 13. f4 {[%clk 0:03:57.3]} 13... exf3 {[%clk 0:04:33.5]} 14. exf3
{[%clk 0:03:41.8]} 14... Qd5 {[%clk 0:04:32.3]} 15. Kf2 {[%clk 0:03:27.5]} 15...
Qf5 {[%clk 0:04:01.7]} 16. Qd3 {[%clk 0:03:17.1]} 16... Be4 {[%clk 0:03:54.5]}
17. Qc4 {[%clk 0:03:04.7]} 17... Rh2 {[%clk 0:03:46.4]} 18. Kg1 {[%clk
0:02:55.7]} 18... Rxg2+ {[%clk 0:03:32.7]} 19. Kxg2 {[%clk 0:02:55.1]} 19... Bd5
{[%clk 0:03:27]} 20. Qxc7 {[%clk 0:02:54.2]} 20... Na6 {[%clk 0:03:08.8]} 21.
Qe5 {[%clk 0:02:50.1]} 21... Qxc2+ {[%clk 0:03:04.3]} 22. Rf2 {[%clk 0:02:49.6]}
22... Qg6+ {[%clk 0:03:02.9]} 23. Qg3 {[%clk 0:02:48.5]} 23... Qd3 {[%clk
0:02:54.7]} 24. Nc3 {[%clk 0:02:43.5]} 24... Bb7 {[%clk 0:02:15.5]} 25. Re1
{[%clk 0:02:17.1]} 25... O-O-O {[%clk 0:02:13.4]} 26. Rd2 {[%clk 0:01:24.3]}
26... Qf5 {[%clk 0:01:58.3]} 27. Rc1 {[%clk 0:01:15]} 27... e5 {[%clk
0:01:53.8]} 28. Nb5+ {[%clk 0:01:02.7]} 28... Kb8 {[%clk 0:01:51.8]} 29. Qxe5+
{[%clk 0:01:02]} 29... Qxe5 {[%clk 0:01:50.8]} 30. dxe5 {[%clk 0:01:01.9]} 30...
Rxd2+ {[%clk 0:01:49.8]} 31. Bxd2 {[%clk 0:01:01.8]} 31... Nc5 {[%clk
0:01:45.4]} 32. Nd6 {[%clk 0:00:58.7]} 32... Nd3 {[%clk 0:01:36.4]} 33. Rh1
{[%clk 0:00:51.3]} 33... Nxe5 {[%clk 0:01:32.3]} 34. Rh8 {[%clk 0:00:45.5]}
34... Ng6 {[%clk 0:01:27]} 35. Rg8 {[%clk 0:00:43.3]} 35... Bxf3+ {[%clk
0:01:17.5]} 36. Kxf3 {[%clk 0:00:41.7]} 36... Ne5+ {[%clk 0:01:16.7]} 37. Ke4
{[%clk 0:00:40.5]} 37... Kc7 {[%clk 0:01:09.1]} 38. Kxe5 {[%clk 0:00:38.9]}
38... Bxd6+ {[%clk 0:01:08.3]} 39. Kd5 {[%clk 0:00:38.8]} 39... Bc5 {[%clk
0:01:06.6]} 40. Rg7+ {[%clk 0:00:38.2]} 40... Kd8 {[%clk 0:01:04.8]} 41. Ke6
{[%clk 0:00:37.1]} 41... a5 {[%clk 0:01:00.4]} 42. Bf4 {[%clk 0:00:36.6]} 42...
Kc8 {[%clk 0:00:57.2]} 43. Rc7+ {[%clk 0:00:35.8]} 43... Kd8 {[%clk 0:00:54.9]}
44. Rc6 {[%clk 0:00:35.4]} 44... a4 {[%clk 0:00:48.8]} 45. Bg5+ {[%clk
0:00:34.3]} 45... Ke8 {[%clk 0:00:46.7]} 46. Rc8# {[%clk 0:00:33.8]} 1-0

[Event "Live Chess"]
[Site "Chess.com"]
[Date "2024.06.01"]
[Round "-"]
[White "Eva3337"]
[Black "matt1979"]
[Result "0-1"]
[WhiteElo "1156"]
[BlackElo "1387"]
[TimeControl "300"]
[EndTime "12:30:01 PDT"]
[Termination "matt1979 won by resignation"]

1. e4 {[%clk 0:04:56.4]} 1... d6 {[%clk 0:04:58.6]} 2. d4 {[%clk 0:04:49.9]}
2... Nf6 {[%clk 0:04:55.3]} 3. Bd3 {[%clk 0:04:43.9]} 3... Nbd7 {[%clk
0:04:51.6]} 4. Nf3 {[%clk 0:04:36.7]} 4... e5 {[%clk 0:04:49.5]} 5. d5 {[%clk
0:04:34.5]} 5... Be7 {[%clk 0:04:47.2]} 6. O-O {[%clk 0:04:21.8]} 6... c6 {[%clk
0:04:43.6]} 7. c4 {[%clk 0:04:19.2]} 7... Qc7 {[%clk 0:04:39.7]} 8. h3 {[%clk
0:04:09.3]} 8... Nc5 {[%clk 0:04:37.7]} 9. Bc2 {[%clk 0:04:05.7]} 9... Ncxe4
{[%clk 0:04:32.6]} 10. Bxe4 {[%clk 0:04:00.5]} 10... Nxe4 {[%clk 0:04:31.1]} 11.
Qd3 {[%clk 0:03:39.4]} 11... f5 {[%clk 0:04:23.1]} 12. Nh2 {[%clk 0:03:29.3]}
12... Nc5 {[%clk 0:04:15.9]} 13. Qg3 {[%clk 0:03:24.7]} 13... Bf6 {[%clk
0:04:05.7]} 14. Bg5 {[%clk 0:03:00.7]} 14... Ne4 {[%clk 0:03:57.3]} 15. Qe3
{[%clk 0:02:18.8]} 15... Bxg5 {[%clk 0:03:38.5]} 16. f4 {[%clk 0:02:14.7]} 16...
Bxf4 {[%clk 0:03:29.7]} 17. Rxf4 {[%clk 0:02:12.9]} 17... exf4 {[%clk
0:03:27.8]} 18. Qxf4 {[%clk 0:02:10.7]} 18... O-O {[%clk 0:03:00.3]} 19. Nc3
{[%clk 0:02:06.3]} 19... Nxc3 {[%clk 0:02:58.5]} 20. bxc3 {[%clk 0:02:04.5]}
20... Qe7 {[%clk 0:02:51.9]} 21. Nf3 {[%clk 0:01:58.4]} 21... Qf6 {[%clk
0:02:32.3]} 22. Ng5 {[%clk 0:01:12.1]} 22... h6 {[%clk 0:02:27.5]} 23. Ne6
{[%clk 0:01:09.9]} 23... Bxe6 {[%clk 0:02:24]} 24. dxe6 {[%clk 0:01:08.6]} 24...
Qxe6 {[%clk 0:02:21.9]} 25. Kf2 {[%clk 0:01:06.9]} 25... Rfe8 {[%clk 0:02:15.1]}
26. Kg1 {[%clk 0:00:52.5]} 26... Qe3+ {[%clk 0:02:12.4]} 27. Qxe3 {[%clk
0:00:50]} 27... Rxe3 {[%clk 0:02:11.1]} 28. Kh2 {[%clk 0:00:47.9]} 28... Rxc3
{[%clk 0:02:08.4]} 0-1